fUSD/lending_fUSD_20240817
["ID","MTS","AMOUNT","RATE_DAILY","PERIOD"]
[335140186,1723889532916,-156.4355,0.00010799,2]
[335140187,1723889532943,-318.09148842,0.000108,2]
[335140188,1723889532969,-318.09148842,0.0001085,2]
[335140189,1723889532996,-155.0,0.0001089,2]
[335140190,1723889533024,-150.0,0.00010898,2]
[335140191,1723889533052,-22524.3447211,0.00010899,2]
[335140192,1723889533080,-63691.51649946,0.00010899,2]
[335140193,1723889533107,-52350.1296026,0.00010899,2]
[335140195,1723889565873,175.06,8.268e-05,2]
[335140199,1723889729743,200.0,9.975e-05,2]
[335140209,1723889829361,801.98,9.918e-05,2]
[335140210,1723889835779,250.0,9.918e-05,2]
[335140211,1723889852370,197.09206619,9.943e-05,2]
[335140212,1723889864262,155.0,9.943e-05,2]
[335140213,1723889886075,2294.11,9.923e-05,2]
[335140214,1723889905463,297.42341449,9.943e-05,2]
[335140221,1723889972360,200.0,9.936e-05,2]
[335140530,1723890137487,-23233.78,0.00010003,2]
[335140531,1723890137511,-216.23077973,0.00010229,2]
[335140532,1723890137535,-209.32492847,0.00010505,2]
[335140533,1723890137560,-175.06,0.00010532,2]
[335140534,1723890137583,-155.0,0.00010566,2]
[335140535,1723890137605,-1005.0,0.000107,2]
[335140536,1723890137629,-162.95196994,0.00010713,2]
[335140537,1723890137652,-1138.87080337,0.00010713,2]
[335140538,1723890137674,-764.0,0.00010759,2]
[335140539,1723890137696,-1074.0,0.00010759,2]
[335140540,1723890137718,-150.0,0.00010798,2]
[335140541,1723890137740,-15931.78491849,0.00010799,2]
[335140542,1723890149548,-20000.0,0.00010799,2]
[335140543,1723890150799,-568.30168151,0.00010799,2]
[335140544,1723890150821,-5163.38,0.00010799,2]
[335140545,1723890150843,-2342.45587798,0.00010799,2]
[335140546,1723890150866,-892.04452683,0.00010799,2]
[335140547,1723890152531,170.0,8.219e-05,2]
[335140548,1723890152772,170.0,0.00010474,2]
[335140549,1723890172987,155.49090432,0.00010799,2]
[335140550,1723890174841,305.29582086,0.000108,2]
[335140551,1723890175181,698.86020573,0.00010799,2]
[335140552,1723890178762,-415.46431527,0.00010852,2]
[335140553,1723890178786,-255.13733329,0.00010852,2]
[335140554,1723890178809,-531.39122984,0.00010852,2]
[335140555,1723890178832,-440.02330588,0.00010852,2]
[335140556,1723890178857,-309.94698488,0.00010852,2]
[335140557,1723890178882,-7582.20781361,0.00010852,2]
[335140558,1723890179448,305.29582077,0.00010811,2]
[335140559,1723890180658,293.5112118,0.00010799,2]
[335140560,1723890193325,2117.0,0.000178,120]
[335140561,1723890193784,2117.0,0.0001779,120]
[335140562,1723890194261,2117.0,0.0001778,120]
[335140563,1723890194730,2117.0,0.000178,120]
[335140564,1723890195439,2117.0,0.0001779,120]
[335140565,1723890195769,2117.0,0.0001778,120]
[335140566,1723890196243,2117.0,0.000178,120]
[335140567,1723890196764,2117.0,0.0001779,120]
[335140568,1723890197276,2117.0,0.000178,120]
[335140569,1723890197738,2123.54,0.0001779,120]
[335140570,1723890198700,1000.0,0.000108,2]
[335140571,1723890201951,-305.29582077,0.00010822,2]
[335140572,1723890201973,-305.29582077,0.00010833,2]
[335140573,1723890201995,-305.29582077,0.00010844,2]
[335140574,1723890202017,-300.0,0.00010851,2]
[335140575,1723890202040,-155.0,0.00010852,2]
[335140576,1723890202061,-179.4623719,0.00010852,2]
[335140577,1723890202082,-155.30008141,0.00010852,2]
[335140578,1723890202103,-155.32588025,0.00010852,2]
[335140579,1723890202125,-251.34680268,0.00010852,2]
[335140580,1723890202147,-7083.361373,0.00010852,2]
[335140581,1723890202168,-305.29582077,0.00010856,2]
[335140582,1723890202189,-175.02110761,0.00010861,2]
[335140583,1723890202211,-256.39705355,0.00010861,2]
[335140584,1723890202238,-305.00194793,0.00010861,2]
[335140585,1723890202260,-275.1054945,0.00010861,2]
[335140586,1723890202281,-155.235023,0.00010861,2]
[335140587,1723890202303,-155.39087426,0.00010861,2]
[335140588,1723890202325,-159.58732349,0.00010861,2]
[335140589,1723890202346,-546.93040052,0.00010861,2]
[335140590,1723890202368,-235.95346244,0.00010861,2]
[335140591,1723890202390,-155.68229894,0.00010861,2]
[335140592,1723890202412,-523.33093654,0.00010861,2]
[335140593,1723890202436,-415.01059966,0.00010862,2]
[335140594,1723890202460,-155.36758497,0.00010862,2]
[335140595,1723890202483,-261.61114158,0.00010862,2]
[335140596,1723890202504,-3294.1747,0.00010877,2]
[335140597,1723890202527,-528.80773361,0.00010888,2]
[335140598,1723890202549,-256.3785692,0.0001089,2]
[335140599,1723890202572,-499.99,0.0001089,2]
[335140600,1723890202596,-545.23692331,0.00010898,2]
[335140601,1723890217245,-155.35697792,0.00010852,2]
[335140602,1723890217267,-305.29582077,0.00010867,2]
[335140603,1723890217294,-305.29582077,0.00010878,2]
[335140604,1723890217318,-305.29582077,0.00010889,2]
[335140605,1723890217345,-1356.50307669,0.00010898,2]
[335140606,1723890217367,-1901.74,0.00010898,2]
[335140607,1723890217389,-520.36728341,0.00010898,2]
[335140608,1723890217414,-1354.5,0.00010898,2]
[335140609,1723890217437,-508.11,0.00010898,2]
[335140610,1723890217459,-500.0,0.00010898,2]
[335140611,1723890217482,-12787.53519967,0.00010898,2]
[335140612,1723890230976,-748.26,0.00010073,2]
[335140613,1723890231000,-7212.46480033,0.00010898,2]
[335140614,1723890231023,-1910.95,0.00010898,2]
[335140615,1723890231044,-1910.95,0.00010898,2]
[335140616,1723890231067,-415.97,0.00010898,2]
[335140617,1723890231090,-719.91,0.00010898,2]
[335140618,1723890231113,-182.443238,0.00010899,2]
[335140619,1723890231135,-182.443238,0.00010899,2]
[335140620,1723890231158,-182.443238,0.00010899,2]
[335140621,1723890231180,-182.443238,0.00010899,2]
[335140622,1723890231201,-182.443238,0.00010899,2]
[335140623,1723890231224,-182.443238,0.00010899,2]
[335140624,1723890231247,-183.97398844,0.00010899,2]
[335140625,1723890231269,-151.0,0.00010899,2]
[335140626,1723890231292,-151.0,0.00010899,2]
[335140627,1723890231314,-151.0,0.00010899,2]
[335140628,1723890231336,-151.0,0.00010899,2]
[335140629,1723890231358,-1901.74,0.00010899,2]
[335140630,1723890231379,-500.0,0.00010899,2]
[335140631,1723890231402,-2000.0,0.00010899,2]
[335140632,1723890231426,-200.0,0.00010899,2]
[335140633,1723890231448,-597.12178323,0.00010899,2]
[335140634,1723890231530,-757.37821677,0.00010899,2]
[335140635,1723890231553,-508.11,0.00010899,2]
[335140636,1723890231575,-500.0,0.00010899,2]
[335140637,1723890231597,-18234.51178323,0.00010899,2]
[335140638,1723890253496,-300.0,0.00010898,2]
[335140639,1723890253519,-150.0,0.00010898,2]
[335140640,1723890253542,-1765.48821677,0.00010899,2]
[335140641,1723890253564,-1910.95,0.00010899,2]
[335140642,1723890253588,-1608.4835,0.00010899,2]
[335140643,1723890253611,-719.91,0.00010899,2]
[335140644,1723890253634,-4127.79,0.00010899,2]
[335140645,1723890253655,-151.0,0.00010899,2]
[335140646,1723890253677,-151.0,0.00010899,2]
[335140647,1723890253700,-151.0,0.00010899,2]
[335140648,1723890253722,-2000.0,0.000109,2]
[335140649,1723890253744,-2000.0,0.000109,2]
[335140650,1723890253766,-619.65484326,0.000109,2]
[335140651,1723890253788,-182.443238,0.000109,2]
[335140652,1723890253811,-151.0,0.000109,2]
[335140653,1723890253833,-151.0,0.000109,2]
[335140654,1723890253854,-507.108004,0.000109,2]
[335140655,1723890253876,-1847.67,0.000109,2]
[335140656,1723890253898,-1357.75699932,0.000109,2]
[335140657,1723890253922,-147.74519865,0.000109,2]
[335140658,1723890254504,-1210.01180061,0.000109,2]
[335140659,1723890254528,-151.0,0.000109,2]
[335140660,1723890254552,-1357.75699926,0.000109,2]
[335140661,1723890254574,-1357.75699926,0.000109,2]
[335140662,1723890254596,-15923.47420087,0.000109,2]
[335140663,1723890255678,-20000.0,0.000109,2]
[335140664,1723890263967,-1664.02,0.00010899,2]
[335140665,1723890263992,-441.98,0.000109,2]
[335140698,1723890510807,-358.78056054,9.988e-05,2]
[335140711,1723890574110,840.0,9.937e-05,2]
[335140715,1723890632332,-1.21943946,9.988e-05,2]
[335140716,1723890632342,-448.81763354,0.0001,2]
[335140717,1723890632353,-707.96114371,0.0001,2]
[335140718,1723890632363,-1556.56701969,0.00010699,2]
[335140719,1723890632372,-12942.86028976,0.00010799,2]
[335140720,1723890632383,-389.84087267,0.00010799,2]
[335140721,1723890632394,-432.000004,0.00010799,2]
[335140722,1723890632405,-941.64476647,0.00010799,2]
[335140723,1723890632415,-6703.7546083,0.00010799,2]
[335140724,1723890632426,-10267.24643384,0.00010799,2]
[335140725,1723890632437,-3255.09037,0.00010799,2]
[335140726,1723890632626,-4603.03995499,0.00010799,2]
[335140727,1723890632637,-1054.8607206,0.00010799,2]
[335140728,1723890632652,-1081.77537937,0.00010799,2]
[335140729,1723890632667,-305.29582077,0.000108,2]
[335140730,1723890632677,-316.9035925,0.00010852,2]
[335140731,1723890632686,-156.27131137,0.00010852,2]
[335140732,1723890632695,-1000.0,0.00010859,2]
[335140733,1723890632705,-155.0,0.00010861,2]
[335140734,1723890632715,-155.0,0.00010862,2]
[335140735,1723890632725,-155.0,0.0001089,2]
[335140736,1723890632734,-96.79500241,0.0001089,2]
[335140737,1723890632745,-472.14322502,0.0001089,2]
[335140738,1723890632756,-401.44091038,0.0001089,2]
[335140739,1723890632771,-1797.61002149,0.0001089,2]
[335140740,1723890632783,-3434.7094964,0.0001089,2]
[335140741,1723890632794,-1265.5213443,0.0001089,2]
[335140742,1723890632803,-734.4786557,0.0001089,2]
[335140743,1723890632815,-1601.38575,0.0001089,2]
[335140744,1723890632826,-3115.2055943,0.0001089,2]
[335140745,1723890632835,-3955.8,0.00010898,2]
[335140746,1723890632844,-659.92,0.00010898,2]
[335140747,1723890632853,-356.53035171,0.00010898,2]
[335140748,1723890632863,-1594.69,0.00010898,2]
[335140749,1723890632872,-500.0,0.00010898,2]
[335140750,1723890632881,-500.0,0.00010898,2]
[335140751,1723890632891,-500.0,0.00010898,2]
[335140752,1723890632902,-1241.62,0.00010898,2]
[335140753,1723890632911,-3187.86205462,0.00010899,2]
[335140754,1723890632923,-3230.68631558,0.00010899,2]
[335140755,1723890632935,-3150.20515077,0.00010899,2]
[335140756,1723890632946,-9750.41485149,0.00010899,2]
[335140757,1723890632957,-2163.75115587,0.00010899,2]
[335140758,1723890632968,-290.16336359,0.00010899,2]
[335140759,1723890632980,-4866.61354802,0.00010899,2]
[335140760,1723890632991,-292.52138008,0.00010899,2]
[335140761,1723890633006,-1349.41067665,0.00010899,2]
[335140762,1723890633017,-889.15149544,0.00010899,2]
[335140763,1723890633028,-443.47639839,0.00010899,2]
[335140764,1723890633044,-1440.04256231,0.00010899,2]
[335140765,1723890633055,-250.0,0.00010899,2]
[335140766,1723890633067,-562.4996314,0.00010899,2]
[335140767,1723890633078,-846.08694448,0.00010899,2]
[335140768,1723890633091,-508.11036067,0.00010899,2]
[335140769,1723890633101,-3981.7209524,0.00010899,2]
[335140770,1723890633112,-1667.56231951,0.00010899,2]
[335140771,1723890634226,-0.11173977,0.00010899,2]
[335140772,1723890634395,-382.31751455,0.00010899,2]
[335140773,1723890638299,-301.11415239,0.00010898,2]
[335140774,1723890638311,-0.05902873,0.00010898,2]
[335140775,1723890638320,-495.94097127,0.00010899,2]
[335140776,1723890638406,-1039.62605623,0.00010899,2]
[335140777,1723890638423,-33617.15824039,0.00010899,2]
[335140778,1723890638432,-438.35974819,0.00010899,2]
[335140779,1723890638443,-577.7598118,0.00010899,2]
[335140780,1723890638454,-716.53939924,0.00010899,2]
[335140781,1723890638470,-2709.20962988,0.00010899,2]
[335140782,1723890638481,-1662.12038026,0.00010899,2]
[335140783,1723890638495,-1771.15448137,0.00010899,2]
[335140784,1723890638505,-1281.99651073,0.00010899,2]
[335140785,1723890638516,-408.0085986,0.00010899,2]
[335140786,1723890638527,-1076.7,0.00010899,2]
[335140787,1723890638538,-1154.54016205,0.00010899,2]
[335140788,1723890638549,-1249.1832568,0.00010899,2]
[335140789,1723890638559,-930.51620209,0.00010899,2]
[335140790,1723890638571,-5808.32989986,0.00010899,2]
[335140791,1723890638590,-2500.0,0.00010899,2]
[335140946,1723890640614,-861.50000005,0.00010899,2]
[335140950,1723890640643,-422.95610072,0.00010899,2]
[335140955,1723890640677,-8817.28104593,0.00010899,2]
[335140957,1723890640782,-1374.95943828,0.00010899,2]
[335140959,1723890640811,-499.9996419,0.00010899,2]
[335140962,1723890640839,-500.0,0.00010899,2]
[335141212,1723890643401,-185.00937477,0.0001089,2]
[335141214,1723890643410,-2441.60253397,0.00010899,2]
[335141216,1723890643419,-8386.38809126,0.00010899,2]
[335141296,1723890644235,-2335.57778295,0.00010899,2]
[335141298,1723890644247,-996.40993716,0.00010899,2]
[335141300,1723890644258,-438.5695808,0.00010899,2]
[335141302,1723890644270,-440.99606515,0.00010899,2]
[335141534,1723890646691,-250.32489,0.0001079,2]
[335141536,1723890646701,-10813.75911,0.00010899,2]
[335142281,1723890656668,153.0,8.219e-05,2]
[335151951,1723890828835,186.66,9.975e-05,2]
[335152625,1723891073375,328.0,9.929e-05,2]
[335152626,1723891132907,165.45,9.921e-05,2]
[335152627,1723891146969,204.41,8.219e-05,2]
[335152628,1723891181241,23890.0,9.889e-05,2]
[335152629,1723891210923,1298.83,9.969e-05,2]
[335152630,1723891217541,172.29,9.89e-05,2]
[335152631,1723891228238,1292.29168094,8.219e-05,2]
[335152632,1723891270631,236.76,9.901e-05,2]
[335152633,1723891273783,250.0,9.901e-05,2]
[335152634,1723891311995,697.83,9.898e-05,2]
[335154842,1723891447119,186.68,9.832e-05,2]
[335155029,1723891495213,1156.16,9.867e-05,2]
[335155034,1723891588688,267.44,9.843e-05,2]
[335155038,1723891617073,8744.69390815,9.943e-05,2]
[335155039,1723891621149,194.18,8.219e-05,2]
[335156512,1723891698463,546.93040052,9.962e-05,2]
[335156513,1723891705090,1000.0,9.812e-05,2]
[335156514,1723891708846,2342.45587798,9.962e-05,2]
[335156878,1723891831535,-316.9035925,9.988e-05,2]
[335156879,1723891831546,-550.0,0.0001,2]
[335156880,1723891831555,-2144.320275,0.0001,2]
[335156882,1723891831564,-155.0,0.00010026,2]
[335156883,1723891831573,-155.0,0.00010026,2]
[335156884,1723891831583,-194.18,0.00010468,2]
[335156885,1723891831592,-211.12468824,0.00010471,2]
[335156886,1723891831602,-4555.2236,0.000105,2]
[335156887,1723891831612,-258542.0,0.000105,2]
[335156889,1723891831623,-11501.0,0.000106,3]
[335156890,1723891831632,-150.0,0.00010603,2]
[335156891,1723891831643,-150.0,0.0001063,2]
[335156892,1723891831654,-150.0,0.00010658,2]
[335156893,1723891831664,-150.0,0.00010659,2]
[335156895,1723891831674,-150.0,0.00010674,2]
[335156896,1723891831683,-150.0,0.00010697,2]
[335156897,1723891831693,-1730.52,0.00010699,2]
[335156898,1723891831703,-11501.0,0.000107,5]
[335156899,1723891831712,-499.99,0.00010713,2]
[335156901,1723891831722,-286.17,0.00010713,2]
[335156902,1723891831731,-150.0,0.00010714,2]
[335156903,1723891831741,-1362.44,0.00010719,2]
[335156904,1723891831751,-764.0,0.00010763,2]
[335156905,1723891831760,-150.0,0.00010788,2]
[335156906,1723891831769,-696.40074,0.0001079,2]
[335156908,1723891831779,-1500.0,0.00010797,2]
[335156909,1723891831788,-150.0,0.00010798,2]
[335156910,1723891831798,-706.5476,0.00010799,2]
[335156911,1723891831808,-32364.2297,0.00010799,2]
[335156912,1723891831818,-150.0,0.000108,2]
[335156914,1723891831827,-150.0,0.00010827,2]
[335156915,1723891831836,-150.0,0.00010833,2]
[335156916,1723891831846,-150.0,0.00010838,2]
[335156917,1723891831856,-2424.7847,0.00010859,2]
[335156918,1723891831865,-292.71591566,0.00010861,2]
[335156920,1723891831875,-293.79422022,0.00010861,2]
[335156921,1723891831884,-179.4623719,0.00010862,2]
[335156922,1723891831894,-531.39122984,0.00010862,2]
[335156923,1723891831903,-155.00000007,0.00010862,2]
[335156924,1723891831913,-150.0,0.00010885,2]
[335156926,1723891831922,-547.10949943,0.0001089,2]
[335156927,1723891831932,-19139.189828,0.00010898,2]
[335156928,1723891831942,-507.36852464,0.00010898,2]
[335156929,1723891831951,-530.88,0.00010898,2]
[335156930,1723891831961,-500.0,0.00010898,2]
[335156932,1723891831970,-500.0,0.00010898,2]
[335156933,1723891831980,-500.0,0.00010898,2]
[335156934,1723891831989,-1672.08,0.00010898,2]
[335156935,1723891831999,-632.42,0.00010898,2]
[335156936,1723891832009,-1730.52,0.00010898,2]
[335156938,1723891832019,-183.97398844,0.00010899,2]
[335156939,1723891832029,-151.0,0.00010899,2]
[335156940,1723891832040,-151.0,0.00010899,2]
[335156941,1723891832050,-151.0,0.00010899,2]
[335156942,1723891832059,-151.0,0.00010899,2]
[335156944,1723891832069,-500.0,0.00010899,2]
[335156945,1723891832078,-500.0,0.00010899,2]
[335156946,1723891832088,-257.7700176,0.00010899,2]
[335156947,1723891832097,-632.42,0.00010899,2]
[335156948,1723891832107,-257.77001758,0.00010899,2]
[335156949,1723891832116,-257.77001758,0.00010899,2]
[335156951,1723891832126,-257.77001758,0.000109,2]
[335156952,1723891832136,-257.77001758,0.000109,2]
[335156953,1723891832146,-257.77001758,0.000109,2]
[335156954,1723891832155,-1117.0,0.000109,2]
[335156955,1723891832165,-2000.0,0.000109,2]
[335156957,1723891832174,-2000.0,0.000109,2]
[335156958,1723891832185,-200.0,0.000109,2]
[335156959,1723891832194,-151.0,0.000109,2]
[335156960,1723891832204,-200.0,0.000109,2]
[335156961,1723891832214,-200.0,0.000109,2]
[335156963,1723891832224,-513.5,0.000109,2]
[335156964,1723891832234,-810.0,0.000109,2]
[335156965,1723891832244,-1141.94654097,0.000109,2]
[335156966,1723891832253,-151.0,0.000109,2]
[335156967,1723891832263,-921.0,0.000109,2]
[335156969,1723891832272,-226.0,0.000109,2]
[335156970,1723891832282,-1532.18805683,0.000109,2]
[335156971,1723891832291,-1532.18805679,0.000109,2]
[335156972,1723891832301,-598.46193154,0.000109,2]
[335156973,1723891832311,-455.94685834,0.000109,2]
[335156975,1723891832321,-1532.18805679,0.000109,2]
[335156976,1723891832331,-1532.18805679,0.000109,2]
[335156977,1723891832340,-1615.51,0.000109,2]
[335156978,1723891832350,-1532.18805679,0.000109,2]
[335156979,1723891832360,-257.77001758,0.000109,2]
[335156981,1723891832369,-1532.18805679,0.000109,2]
[335156982,1723891832379,-1532.18805679,0.000109,2]
[335156983,1723891832388,-1532.18805679,0.000109,2]
[335156984,1723891832398,-4494.54241581,0.000109,2]
[335156985,1723891832409,-1500.0,0.00010933,2]
[335156987,1723891832419,-500.0,0.00010953,2]
[335156988,1723891832430,-3828.1,0.00010953,2]
[335156989,1723891832443,-1528.24,0.00010953,2]
[335156990,1723891832453,-1602.0225675,0.00010954,2]
[335156991,1723891832462,-151.9050838,0.00010954,2]
[335156993,1723891832472,-2127.2837575,0.00010954,2]
[335156994,1723891832485,-197.8219692,0.00010954,2]
[335156995,1723891832496,-2957.73144076,0.00010958,2]
[335156996,1723891832505,-465.98422402,0.00010958,2]
[335156998,1723891832516,-500.0,0.00010958,2]
[335156999,1723891832525,-500.0,0.00010958,2]
[335157000,1723891832535,-531.1243407,0.00010958,2]
[335157001,1723891832544,-500.0,0.00010958,2]
[335157002,1723891832554,-500.0,0.00010958,2]
[335157004,1723891832564,-500.0,0.00010958,2]
[335157005,1723891832573,-500.0,0.00010958,2]
[335157006,1723891832582,-500.0,0.00010958,2]
[335157007,1723891832591,-500.0,0.00010958,2]
[335157008,1723891832600,-211.93569369,0.00010958,2]
[335157010,1723891832611,-637.32236055,0.00010958,2]
[335157011,1723891832620,-1000.0,0.00010959,2]
[335157012,1723891832630,-1000.0,0.00010959,2]
[335157013,1723891832639,-1000.0,0.00010959,2]
[335157014,1723891832647,-1000.0,0.00010959,2]
[335157016,1723891832656,-1000.0,0.00010959,2]
[335157017,1723891832665,-1000.0,0.00010959,2]
[335157018,1723891832676,-1000.0,0.00010959,2]
[335157019,1723891832685,-198.0,0.00010959,2]
[335157020,1723891832696,-192.0,0.00010959,2]
[335157022,1723891832706,-180.11,0.00010959,2]
[335157023,1723891832716,-1000.0,0.00010959,2]
[335157024,1723891832726,-1000.0,0.00010959,2]
[335157025,1723891832735,-1000.0,0.00010959,2]
[335157026,1723891832744,-1000.0,0.00010959,2]
[335157028,1723891832753,-1000.0,0.00010959,2]
[335157029,1723891832763,-1000.0,0.00010959,2]
[335157030,1723891832772,-1000.0,0.00010959,2]
[335157031,1723891832783,-1000.0,0.00010959,2]
[335157032,1723891832793,-1000.0,0.00010959,2]
[335157034,1723891832802,-1500.0,0.00010959,2]
[335157035,1723891832811,-1000.0,0.00010959,2]
[335157036,1723891832821,-1000.0,0.00010959,2]
[335157037,1723891832830,-1000.0,0.00010959,2]
[335157038,1723891832839,-1000.0,0.00010959,2]
[335157040,1723891832849,-5170.75,0.00010959,2]
[335157041,1723891832859,-801.22,0.00010959,2]
[335157042,1723891832868,-2000.0,0.00010959,2]
[335157043,1723891832878,-250.0,0.00010959,2]
[335157044,1723891832888,-150.0,0.00010959,2]
[335157046,1723891832898,-3279.48,0.00010959,2]
[335157047,1723891832908,-652.68,0.00010959,2]
[335157048,1723891832918,-543.9,0.00010959,2]
[335157049,1723891832928,-453.25,0.00010959,2]
[335157050,1723891832939,-377.7,0.00010959,2]
[335157052,1723891832949,-314.75,0.00010959,2]
[335157053,1723891832959,-262.3,0.00010959,2]
[335157054,1723891832969,-218.58,0.00010959,2]
[335157055,1723891832978,-182.15,0.00010959,2]
[335157056,1723891832988,-151.79,0.00010959,2]
[335157058,1723891832998,-758.98,0.00010959,2]
[335157059,1723891833009,-151.0,0.00010959,2]
[335157060,1723891833019,-151.0,0.00010959,2]
[335157061,1723891833030,-151.0,0.00010959,2]
[335157063,1723891833040,-151.0,0.00010959,2]
[335157064,1723891833050,-151.0,0.00010959,2]
[335157065,1723891833060,-197.36312,0.00010961,2]
[335157066,1723891833070,-410.89026079,0.00010966,2]
[335157067,1723891833079,-502.80170686,0.0001098,2]
[335157069,1723891833090,-2258.0,0.0001098,2]
[335157070,1723891833099,-267.15071803,0.00010983,2]
[335157071,1723891833109,-156.13562367,0.00010987,2]
[335157072,1723891833119,-1730.52,0.00010988,2]
[335157073,1723891833128,-530.88,0.00010989,2]
[335157075,1723891833138,-530.88,0.00010989,2]
[335157076,1723891833148,-500.0,0.00010989,2]
[335157077,1723891833158,-500.0,0.00010989,2]
[335157078,1723891833168,-500.0,0.00010989,2]
[335157079,1723891833177,-500.0,0.00010989,2]
[335157080,1723891833187,-500.0,0.00010989,2]
[335157082,1723891833197,-500.0,0.00010989,2]
[335157083,1723891833207,-500.0,0.00010989,2]
[335157084,1723891833216,-3523.79097488,0.00010989,2]
[335157176,1723891837939,-327.27627059,0.00010853,2]
[335157177,1723891837949,-0.86646478,0.00010862,2]
[335157231,1723891839661,-154.13353522,0.00010862,2]
[335157232,1723891839671,-475.94973023,0.000109,2]
[335157233,1723891839681,-304.30902512,0.00010989,2]
[335157235,1723891839691,-1672.08,0.00010989,2]
[335157236,1723891839700,-990.6291547,0.00010989,2]
[335157239,1723891839811,-537.6108453,0.00010989,2]
[335157240,1723891839820,-632.42,0.00010989,2]
[335157242,1723891839829,-494.46588684,0.00010989,2]
[335157243,1723891839841,-137.95411316,0.00010989,2]
[335157244,1723891839850,-1730.52,0.00010989,2]
[335157245,1723891839859,-191.55947346,0.00010989,2]
[335157246,1723891839869,-1820.38335334,0.0001099,2]
[335157307,1723891842746,-421.83381281,0.0001099,2]
[335157344,1723891845812,-3469.87,0.0001099,2]
[335158639,1723892187220,203.47,8.219e-05,2]
[335158640,1723892249680,175.19,9.982e-05,2]
[335158644,1723892448611,292.71591566,9.943e-05,2]
[335158646,1723892463621,292.71591566,9.943e-05,2]
[335158647,1723892487742,186.67,9.951e-05,2]
[335158651,1723892695299,800.0,9.934e-05,2]
[335158657,1723892754005,193.29,8.219e-05,2]
[335158658,1723892816913,249.15156329,9.962e-05,2]
[335158661,1723892831843,292.17480255,9.962e-05,2]
[335158663,1723892838518,287.24158005,9.962e-05,2]
[335158664,1723892841940,285.84736253,9.962e-05,2]
[335158666,1723892876499,250.0,9.937e-05,2]
[335158667,1723892877328,1815.76009153,9.924e-05,2]
[335158668,1723892893525,7195.2618,9.924e-05,2]
[335158669,1723892895478,412.14592953,9.924e-05,2]
[335158670,1723892932072,306.9434504,9.943e-05,2]
[335158671,1723892936872,200.11370829,9.893e-05,2]
[335158673,1723892947321,291.82277621,9.924e-05,2]
[335158674,1723892954024,186.68,9.927e-05,2]
[335158683,1723892991312,412.66611244,9.893e-05,2]
[335158686,1723893002449,150.0,9.893e-05,2]
[335158687,1723893002639,150.0,9.893e-05,2]
[335158690,1723893002838,150.0,9.893e-05,2]
[335158694,1723893003279,150.0,9.893e-05,2]
[335158695,1723893003429,150.0,9.893e-05,2]
[335158696,1723893003653,150.0,9.893e-05,2]
[335158697,1723893003837,150.0,9.893e-05,2]
[335158698,1723893004049,150.0,9.893e-05,2]
[335158699,1723893004344,797.91,9.933e-05,2]
[335158700,1723893010876,153.9,7.943e-05,2]
[335158701,1723893012952,159.11855562,9.893e-05,2]
[335158737,1723893019209,948.36823263,9.9e-05,2]
[335158983,1723893032248,-550.0,0.0001,2]
[335158984,1723893032258,-316.9035925,0.00010009,2]
[335158985,1723893032268,-200.0,0.00010024,2]
[335158987,1723893032277,-325.33,0.00010045,2]
[335158988,1723893032287,-636.02,0.00010254,2]
[335158989,1723893032297,-173.97,0.00010439,2]
[335158990,1723893032306,-193.29,0.00010473,2]
[335158991,1723893032316,-2342.90099088,0.00010505,2]
[335158992,1723893032326,-10925.56669,0.00010512,2]
[335158994,1723893032336,-764.0,0.00010772,2]
[335158995,1723893032346,-1263.0163,0.00010799,2]
[335158996,1723893032356,-300.0,0.00010799,2]